{"text_format":"2","workbook":"xlsx","n_sheets":1,"sheets":["Pescado"],"not_rendered":{"charts":0,"images":1,"macros":0,"external_links":1,"defined_names":622,"comments":0,"pivot_tables":0},"unopened":[],"bounds":{"document_bytes":16777216,"sheet_cells":100000,"run_cost":"one","rows_first":2000,"rows_last":500,"rows_between":2000,"halvings":0,"cell_chars":16384,"cell_head_chars":4096},"cells_cut":0,"cells_raw":0,"read":"whole","date_system":"1900"}

{"sheet":"Pescado","index":0,"n_rows":25,"n_cols":9,"rows_kept":25,"cut":false,"hidden":false,"merged":[[0,0,0,8]]}
["PLANILHA DE QUANTIDADES, PREÇOS ORÇADOS E ESPECIFICAÇÕES TÉCNICAS"]
["GRUPO","ITEM","CATMAT","ESPECIFICAÇÕES","COTA DECRETO","UNID","QUANT","VALOR UNITÁRIO (R$)","VALOR TOTAL (R$)"]
[1,1,296789,"Ração farelada para peixe onívoro 50% PB – Proteína Bruta Mín.: 50%, granulometria pó. Data de validade não inferior a 6 meses.","Principal","Kg",5625,6.51,{"$f":"G3*H3","v":36618.75}]
[1,2,453424,"Ração extrusada para peixe onívoro 45% PB – Proteína Bruta Mín.:  45%, granulometria 1,2 mm. Data de validade não inferior a 6 meses.","Principal","Kg",11250,7.67,{"$f":"G4*H4","v":86287.5}]
[1,3,268026,"Ração extrusada para peixe onívoro 45% PB – Proteína Bruta Mín.: 45%, granulometria 1.8 mm. Data de validade não inferior a 6 meses.","Principal","Kg",28125,6.37,179156.25]
[1,4,298907,"Ração extrusada para peixe onívoro 35% PB – Proteína Bruta Mín.: 35%, granulometria 2 a 3 mm. Data de validade não inferior a 6 meses.","Principal","Kg",28125,4.3,120937.5]
[1,5,411814,"Ração extrusada para peixe onívoro 35% PB – Proteína Bruta Mín.: 35%, granulometria 3 a 4 mm. Data de validade não inferior a 6 meses.","Principal","Kg",28125,4.21,118406.25]
[1,6,411814,"Ração extrusada para peixe onívoro 32% PB – Proteína Bruta Mín.: 32%, granulometria 3 a 5 mm. Data de validade não inferior a 6 meses.","Principal","Kg",56250,3.37,189562.5]
[1,7,414384,"Ração extrusada para peixe onívoro 32% PB – Proteína Bruta Mín.: 32%, granulometria 4 a 6 mm. Data de validade não inferior a 6 meses.","Principal","Kg",56250,3.02,169875]
[1,8,453430,"Ração extrusada para peixe onívoro 32% PB – Proteína Bruta Mín.: 32%, granulometria 6 a 8 mm. Data de validade não inferior a 6 meses.","Principal","Kg",56250,3.26,183375]
[2,9,296789,"Ração farelada para peixe onívoro 50% PB – Proteína Bruta Mín.: 50%, granulometria pó. Data de validade não inferior a 6 meses.","Exclusivo ME/EPP","Kg",1875,6.51,12206.25]
[2,10,453424,"Ração extrusada para peixe onívoro 45% PB – Proteína Bruta Mín.:  45%, granulometria 1,2 mm. Data de validade não inferior a 6 meses.","Exclusivo ME/EPP","Kg",3750,7.67,28762.5]
[2,11,268026,"Ração extrusada para peixe onívoro 45% PB – Proteína Bruta Mín.: 45%, granulometria 1.8 mm. Data de validade não inferior a 6 meses.","Exclusivo ME/EPP","Kg",9375,6.37,59718.75]
[2,12,298907,"Ração extrusada para peixe onívoro 35% PB – Proteína Bruta Mín.: 35%, granulometria 2 a 3 mm. Data de validade não inferior a 6 meses.","Exclusivo ME/EPP","Kg",9375,4.3,40312.5]
[2,13,411814,"Ração extrusada para peixe onívoro 35% PB – Proteína Bruta Mín.: 35%, granulometria 3 a 4 mm. Data de validade não inferior a 6 meses.","Exclusivo ME/EPP","Kg",9375,4.21,39468.75]
[2,14,411814,"Ração extrusada para peixe onívoro 32% PB – Proteína Bruta Mín.: 32%, granulometria 3 a 5 mm. Data de validade não inferior a 6 meses.","Exclusivo ME/EPP","Kg",18750,3.37,63187.5]
[2,15,414384,"Ração extrusada para peixe onívoro 32% PB – Proteína Bruta Mín.: 32%, granulometria 4 a 6 mm. Data de validade não inferior a 6 meses.","Exclusivo ME/EPP","Kg",18750,3.02,56625]
[2,16,453430,"Ração extrusada para peixe onívoro 32% PB – Proteína Bruta Mín.: 32%, granulometria 6 a 8 mm. Data de validade não inferior a 6 meses.","Exclusivo ME/EPP","Kg",18750,3.26,61124.999999999993]
[3,17,623707,"Ração micro extrusada para camarão 40% PB – Proteína Bruta Mín.: 40%, 700 a 1000 micras Data de validade não inferior a 3 meses.","Principal","Kg",15750,5.9,92925]
[3,18,623707,"Ração micro extrusada para camarão 40% PB – Proteína Bruta Mín.: 40%, 900 a 1300 micras. Data de validade não inferior a 3 meses.","Principal","Kg",78750,5.6,441000]
[3,19,623707,"Ração Peletizada adicionadas de Sais para camarão 35% PB – Proteína Bruta Mín.: 35%, 1.8 mm, Data de validade não inferior a 3 meses.","Principal","Kg",425250,4.17,1773292.5]
[4,20,623707,"Ração micro extrusada para camarão 40% PB – Proteína Bruta Mín.: 40%, 700 a 1000 micras Data de validade não inferior a 3 meses.","Exclusivo ME/EPP","Kg",5250,5.9,30975.000000000004]
[4,21,623707,"Ração micro extrusada para camarão 40% PB – Proteína Bruta Mín.: 40%, 900 a 1300 micras. Data de validade não inferior a 3 meses.","Exclusivo ME/EPP","Kg",26250,5.6,147000]
[4,22,623707,"Ração Peletizada adicionadas de Sais para camarão 35% PB – Proteína Bruta Mín.: 35%, 1.8 mm, Data de validade não inferior a 3 meses.","Exclusivo ME/EPP","Kg",141750,4.17,591097.5]
[{"$nulls":7},"Total (R$)",{"$f":"SUM(I3:I24)","v":4521915}]